fUSD/lending_fUSD_20250117
["ID","MTS","AMOUNT","RATE_DAILY","PERIOD"]
[349366958,1737137471289,-673.21,0.00023199,2]
[349366959,1737137471300,-500.0,0.00023199,2]
[349366960,1737137471309,-673.21,0.00023199,2]
[349366961,1737137471319,-500.0,0.00023199,2]
[349366962,1737137471330,-500.0,0.00023199,2]
[349366963,1737137471340,-673.21,0.00023199,2]
[349366964,1737137471349,-500.0,0.00023199,2]
[349366965,1737137471359,-493.4103,0.00023199,2]
[349366966,1737137471369,-673.21,0.00023199,2]
[349366967,1737137471378,-500.0,0.00023199,2]
[349366968,1737137471390,-673.21,0.00023199,2]
[349366969,1737137471400,-500.0,0.00023199,2]
[349366970,1737137471410,-673.21,0.00023199,2]
[349366971,1737137471420,-673.21,0.00023199,2]
[349366972,1737137471431,-500.0,0.00023199,2]
[349366973,1737137471442,-673.21,0.00023199,2]
[349366974,1737137471452,-500.0,0.00023199,2]
[349366975,1737137471461,-500.0,0.00023199,2]
[349366976,1737137471471,-500.0,0.00023199,2]
[349366977,1737137471482,-673.21,0.00023199,2]
[349366978,1737137471493,-500.0,0.00023199,2]
[349366979,1737137471602,-673.21,0.00023199,2]
[349366980,1737137471612,-500.0,0.00023199,2]
[349366981,1737137471621,-500.0,0.00023199,2]
[349366982,1737137471631,-673.21,0.00023199,2]
[349366983,1737137471641,-1627970.11571768,0.000232,2]
[349366984,1737137471651,-12458.15344362,0.000232,2]
[349366985,1737137471661,-1589648.94429106,0.000232,2]
[349366986,1737137471991,-18400.0,0.000232,2]
[349366987,1737137472004,-991.9224298,0.000232,2]
[349366988,1737137472021,-500.0,0.00023198,2]
[349366989,1737137472030,-567.9999996,0.000232,2]
[349366990,1737137472042,-304.67288233,0.000232,2]
[349366991,1737137472054,-1227.21394694,0.000232,2]
[349366992,1737137472091,-500.0,0.00023177,2]
[349366993,1737137472101,-422.61,0.00023197,2]
[349366994,1737137472112,-150.75,0.00023197,2]
[349366995,1737137472122,-500.0,0.00023198,2]
[349366996,1737137472131,-500.0,0.00023199,2]
[349366997,1737137472141,-673.29,0.00023199,2]
[349366998,1737137472151,-141137.64320649,0.000232,2]
[349366999,1737137472162,-31409.74982504,0.000232,2]
[349367000,1737137472313,-500.0,0.00023197,2]
[349367001,1737137472335,-338.670005,0.00023197,2]
[349367002,1737137472358,-161.329995,0.00023197,2]
[349367003,1737137472380,-500.0,0.00023198,2]
[349367004,1737137472402,-500.0,0.00023198,2]
[349367005,1737137472423,-500.0,0.00023198,2]
[349367006,1737137472444,-500.0,0.00023198,2]
[349367007,1737137472462,-127.58045591,0.00023198,2]
[349367008,1737137472486,-372.41954409,0.00023198,2]
[349367009,1737137472503,-254.65100749,0.00023198,2]
[349367010,1737137472527,-245.34899251,0.00023198,2]
[349367011,1737137472543,-302.12,0.00023198,2]
[349367012,1737137472558,-16.52300949,0.00023199,2]
[349367013,1737137472578,-463.95250134,0.00023199,2]
[349367014,1737137472606,-19.52448917,0.00023199,2]
[349367015,1737137472622,-323.16113043,0.00023199,2]
[349367016,1737137472641,-176.83886957,0.00023199,2]
[349367017,1737137472658,-323.71236629,0.00023199,2]
[349367018,1737137472677,-176.28763371,0.00023199,2]
[349367019,1737137472693,-489.35575001,0.00023199,2]
[349367020,1737137472713,-10.64424999,0.00023199,2]
[349367021,1737137472728,-206.88,0.00023199,2]
[349367022,1737137472743,-500.0,0.00023199,2]
[349367023,1737137472759,-500.0,0.00023199,2]
[349367024,1737137472774,-489.22575004,0.00023199,2]
[349367025,1737137472794,-10.77424996,0.00023199,2]
[349367026,1737137472807,-253.41130646,0.00023199,2]
[349367027,1737137472817,-500.0,0.00023199,2]
[349367028,1737137472826,-4295.18998048,0.000232,2]
[349367029,1737137472839,-256472.10636004,0.000232,2]
[349367030,1737137472856,-500.0,0.00023199,2]
[349367031,1737137472866,-6405.45253584,0.000232,2]
[349367032,1737137472878,-1862.54424,0.000232,2]
[349367033,1737137472890,-625.389765,0.000232,2]
[349367034,1737137472901,-310.13871257,0.000232,2]
[349367035,1737137472913,-644.82818535,0.000232,2]
[349367036,1737137472929,-294.766356,0.000232,2]
[349367037,1737137472941,-13501.06214062,0.000232,2]
[349367038,1737137472958,-500.0,0.00023199,2]
[349367039,1737137472968,-347.7642521,0.000232,2]
[349367040,1737137472980,-7901.67657273,0.000232,2]
[349367041,1737137473132,-345.52999999,0.00023177,2]
[349367042,1737137473144,-154.47000001,0.00023177,2]
[349367043,1737137473155,-191.99824965,0.00023199,2]
[349367044,1737137473167,-308.00175035,0.00023199,2]
[349367045,1737137473176,-353.98620086,0.00023199,2]
[349367046,1737137473189,-146.01379914,0.00023199,2]
[349367047,1737137473543,-500.0,0.00023199,2]
[349367048,1737137473562,-345.73,0.00023199,2]
[349367049,1737137473582,-18656.90171969,0.000232,2]
[349367050,1737137473598,-676928.21582926,0.000232,2]
[349367051,1737137473610,-383.20020393,0.000232,2]
[349367052,1737137473621,-7714.896462,0.000232,2]
[349367053,1737137473641,-500.0,0.00023197,2]
[349367054,1737137473651,-164.717,0.000232,2]
[349367055,1737137473663,-2759.55858665,0.000232,2]
[349367056,1737137473786,-500.0,0.00023177,2]
[349367057,1737137473796,-304.63,0.00023197,2]
[349367058,1737137473806,-238.66927618,0.00023198,2]
[349367059,1737137473818,-261.33072382,0.00023198,2]
[349367060,1737137473828,-500.0,0.00023198,2]
[349367061,1737137473838,-336.66927618,0.00023198,2]
[349367062,1737137473853,-163.33072382,0.00023198,2]
[349367063,1737137473863,-500.0,0.00023198,2]
[349367064,1737137473872,-500.0,0.00023198,2]
[349367065,1737137473881,-505.56049549,0.00023198,2]
[349367066,1737137473891,-500.0,0.00023199,2]
[349367067,1737137473901,-500.0,0.00023199,2]
[349367068,1737137473911,-199.72,0.00023199,2]
[349367069,1737137473920,-32046.38878081,0.000232,2]
[349367070,1737137473932,-2883.6,0.000232,2]
[349367071,1737137473946,-368.18,0.000232,2]
[349367072,1737137473958,-697.24,0.000232,2]
[349367073,1737137473979,-12562.17492713,0.000232,2]
[349367074,1737137475403,-179.23847955,0.00023099,2]
[349367075,1737137477714,173.52,0.00022908,2]
[349367076,1737137478186,194.46,0.00022841,2]
[349367077,1737137486185,4701.0,0.0002302,2]
[349367079,1737137505418,-3294.42,0.000232,7]
[349367080,1737137505443,-178.715908,0.000232,7]
[349367081,1737137505469,-178.715908,0.000232,7]
[349367082,1737137505497,-178.715908,0.000232,7]
[349367083,1737137505522,-151.0,0.000232,7]
[349367084,1737137505549,-151.0,0.000232,7]
[349367085,1737137505575,-151.0,0.000232,7]
[349367086,1737137505599,-151.0,0.000232,7]
[349367087,1737137505623,-151.0,0.000232,7]
[349367088,1737137505647,-151.0,0.000232,7]
[349367089,1737137505671,-151.0,0.000232,7]
[349367090,1737137505694,-151.0,0.000232,7]
[349367091,1737137505718,-151.0,0.000232,7]
[349367092,1737137505745,-194.253356,0.000232,7]
[349367093,1737137505770,-151.0,0.000232,7]
[349367094,1737137505795,-152.143755,0.000232,7]
[349367095,1737137505819,-151.0,0.000232,7]
[349367096,1737137505842,-288.908912,0.000232,7]
[349367097,1737137505866,-151.0,0.000232,7]
[349367098,1737137505890,-151.0,0.000232,7]
[349367099,1737137505913,-151.0,0.000232,7]
[349367100,1737137505938,-151.0,0.000232,7]
[349367101,1737137505961,-151.0,0.000232,7]
[349367102,1737137505989,-151.0,0.000232,7]
[349367103,1737137506013,-151.0,0.000232,7]
[349367104,1737137506037,-151.0,0.000232,7]
[349367105,1737137506062,-151.0,0.000232,7]
[349367106,1737137506086,-151.0,0.000232,7]
[349367107,1737137506109,-151.0,0.000232,7]
[349367108,1737137506133,-262.326883,0.000232,7]
[349367109,1737137506157,-151.0,0.000232,7]
[349367110,1737137506181,-151.0,0.000232,7]
[349367111,1737137506203,-151.0,0.000232,7]
[349367112,1737137506228,-151.0,0.000232,7]
[349367113,1737137506251,-151.0,0.000232,7]
[349367114,1737137506274,-151.0,0.000232,7]
[349367115,1737137506297,-151.0,0.000232,7]
[349367116,1737137506321,-151.0,0.000232,7]
[349367117,1737137506344,-151.0,0.000232,7]
[349367118,1737137506367,-151.0,0.000232,7]
[349367119,1737137506390,-151.0,0.000232,7]
[349367120,1737137506414,-151.0,0.000232,7]
[349367121,1737137506438,-151.70068,0.000232,7]
[349367122,1737137506462,-151.0,0.000232,7]
[349367123,1737137506487,-151.0,0.000232,7]
[349367124,1737137506514,-151.0,0.000232,7]
[349367125,1737137506539,-151.0,0.000232,7]
[349367126,1737137506562,-151.0,0.000232,7]
[349367127,1737137506586,-151.0,0.000232,7]
[349367128,1737137506609,-151.0,0.000232,7]
[349367129,1737137506631,-151.0,0.000232,7]
[349367130,1737137506654,-151.0,0.000232,7]
[349367131,1737137506677,-151.0,0.000232,7]
[349367132,1737137506700,-151.0,0.000232,7]
[349367133,1737137506725,-151.0,0.000232,7]
[349367134,1737137506751,-279.808328,0.000232,7]
[349367135,1737137506780,-151.71156,0.000232,7]
[349367136,1737137506806,-151.0,0.000232,7]
[349367137,1737137506834,-151.0,0.000232,7]
[349367138,1737137506862,-151.0,0.000232,7]
[349367139,1737137506889,-197.682298,0.000232,7]
[349367140,1737137506915,-151.0,0.000232,7]
[349367141,1737137506942,-151.0,0.000232,7]
[349367142,1737137506967,-151.0,0.000232,7]
[349367143,1737137506993,-151.0,0.000232,7]
[349367144,1737137507017,-214.8,0.000232,7]
[349367145,1737137507039,-151.0,0.000232,7]
[349367146,1737137507064,-151.0,0.000232,7]
[349367147,1737137507090,-151.0,0.000232,7]
[349367148,1737137507116,-236.123905,0.000232,7]
[349367149,1737137507142,-151.0,0.000232,7]
[349367150,1737137507165,-151.0,0.000232,7]
[349367151,1737137507188,-234.152597,0.000232,7]
[349367152,1737137507416,-234.152597,0.000232,7]
[349367153,1737137507443,-234.152597,0.000232,7]
[349367154,1737137507470,-234.152597,0.000232,7]
[349367155,1737137507499,-234.152597,0.000232,7]
[349367156,1737137507527,-234.152597,0.000232,7]
[349367157,1737137507552,-234.152597,0.000232,7]
[349367158,1737137507578,-234.152597,0.000232,7]
[349367159,1737137507603,-151.0,0.000232,7]
[349367160,1737137507628,-151.0,0.000232,7]
[349367161,1737137507651,-151.0,0.000232,7]
[349367162,1737137507676,-151.0,0.000232,7]
[349367163,1737137507700,-151.0,0.000232,7]
[349367164,1737137507726,-154.976716,0.000232,7]
[349367165,1737137507750,-151.0,0.000232,7]
[349367166,1737137507777,-151.0,0.000232,7]
[349367167,1737137507800,-151.0,0.000232,7]
[349367168,1737137507823,-151.0,0.000232,7]
[349367169,1737137507846,-151.0,0.000232,7]
[349367170,1737137507871,-151.0,0.000232,7]
[349367171,1737137507894,-151.0,0.000232,7]
[349367172,1737137507917,-151.0,0.000232,7]
[349367173,1737137507941,-151.0,0.000232,7]
[349367174,1737137507966,-151.0,0.000232,7]
[349367175,1737137507992,-151.0,0.000232,7]
[349367176,1737137508016,-151.0,0.000232,7]
[349367177,1737137508040,-151.0,0.000232,7]
[349367178,1737137508066,-151.0,0.000232,7]
[349367179,1737137508090,-151.0,0.000232,7]
[349367180,1737137508114,-151.0,0.000232,7]
[349367181,1737137508139,-284.908247,0.000232,7]
[349367182,1737137508164,-151.0,0.000232,7]
[349367183,1737137508189,-151.0,0.000232,7]
[349367184,1737137508213,-151.0,0.000232,7]
[349367185,1737137508237,-203.931932,0.000232,7]
[349367186,1737137508264,-203.931932,0.000232,7]
[349367187,1737137508290,-203.931932,0.000232,7]
[349367188,1737137508315,-203.931932,0.000232,7]
[349367189,1737137508340,-151.0,0.000232,7]
[349367190,1737137508366,-151.0,0.000232,7]
[349367191,1737137508390,-151.72179,0.000232,7]
[349367192,1737137508416,-151.568826,0.000232,7]
[349367193,1737137508443,-201.959906,0.000232,7]
[349367194,1737137508468,-300.26100369,0.000232,7]
[349367197,1737137656311,772.81,0.00022235,120]
[349367200,1737137736786,172.76,0.00012329,2]
[349367202,1737137800978,182.14,0.00010137,2]
[349367203,1737137801175,1000.0,0.000245,30]
[349367204,1737137802742,1000.0,0.000245,30]
[349367205,1737137803764,1000.0,0.000245,30]
[349367207,1737137806188,1000.0,0.000245,30]
[349367208,1737137811154,1000.0,0.000245,30]
[349367209,1737137814646,1000.0,0.000245,30]
[349367211,1737137821977,1000.0,0.000245,30]
[349367228,1737138308405,99235.32,0.00012,2]
[349367229,1737138308440,973347.20312912,0.00012,2]
[349367230,1737138308468,3555851.24091253,0.00012,2]
[349367231,1737138327057,792.59662278,0.00023,120]
[349367233,1737138333597,1961.54,0.00023197,30]
[349367234,1737138357044,1931.30216754,0.00017,120]
[349367235,1737138390785,150.0,0.00022956,120]
[349367237,1737138432116,-1517.64,0.000153,2]
[349367238,1737138432139,-100.22241211,0.000154,2]
[349367239,1737138443091,-6243.96360552,0.000154,2]
[349367244,1737138481807,1256254.92086997,0.0001,2]
[349367245,1737138483193,2935.16229617,0.0002,120]
[349367258,1737138556138,-1002.15361751,0.000154,2]
[349367259,1737138556160,-154.98138249,0.00016813,2]
[349367262,1737138570800,150.0,0.00022921,120]
[349367263,1737138574228,-27.15861751,0.00016813,2]
[349367264,1737138574249,-401.05540385,0.00018,3]
[349367265,1737138574271,-500.0,0.00018984,2]
[349367266,1737138574293,-965.02,0.00019769,2]
[349367267,1737138574314,-935.64054884,0.0002,2]
[349367268,1737138574335,-1475.5475798,0.0002,4]
[349367285,1737138631948,-300.0,0.00019999,2]
[349367286,1737138631958,-48165.04734745,0.0002,4]
[349367287,1737138631968,-2497.0,0.000209,2]
[349367288,1737138631978,-286.95668176,0.000209,2]
[349367289,1737138631987,-200.0,0.00020982,2]
[349367290,1737138631999,-286.95668153,0.00021003,2]
[349367291,1737138632008,-200.09641628,0.00021014,2]
[349367292,1737138632018,-286.95668153,0.00021107,2]
[349367293,1737138632027,-286.95668153,0.0002121,2]
[349367294,1737138632037,-286.95668153,0.00021314,2]
[349367295,1737138632047,-250.0,0.00021382,2]
[349367296,1737138632058,-250.0,0.00021403,2]
[349367297,1737138632068,-286.95668153,0.00021417,2]
[349367298,1737138632077,-286.95668153,0.00021521,2]
[349367299,1737138632086,-286.95668153,0.00021624,3]
[349367300,1737138632095,-156.76,0.00021675,2]
[349367301,1737138632104,-150.0,0.00021677,2]
[349367302,1737138632114,-200.0,0.00021681,2]
[349367303,1737138632123,-330.0,0.00021699,2]
[349367304,1737138632132,-250.0,0.0002172,2]
[349367305,1737138632142,-286.95668153,0.00021728,3]
[349367306,1737138632151,-405.0,0.00021761,2]
[349367307,1737138632161,-500.0,0.00021763,2]
[349367308,1737138632170,-420.0,0.00021777,2]
[349367309,1737138632179,-286.95668153,0.00021831,3]
[349367310,1737138632188,-179.06,0.0002184,2]
[349367311,1737138632198,-269.07,0.00021929,2]
[349367312,1737138632207,-286.95668153,0.00021934,3]
[349367313,1737138632217,-23900.0,0.00021975,2]
[349367314,1737138632226,-241.0,0.00022,2]
[349367315,1737138632235,-965.02,0.00022033,2]
[349367316,1737138632246,-286.95668153,0.00022038,3]
[349367317,1737138632255,-1000.0,0.00022138,2]
[349367318,1737138632265,-286.95668153,0.00022141,3]
[349367319,1737138632274,-707.56,0.0002219,2]
[349367320,1737138632283,-241.0,0.00022192,2]
[349367321,1737138632294,-286.95668153,0.00022245,3]
[349367322,1737138632303,-286.95668153,0.00022348,3]
[349367323,1737138632313,-286.95668153,0.00022452,3]
[349367324,1737138632322,-286.95668153,0.00022555,3]
[349367325,1737138632332,-9999.99,0.00022562,2]
[349367327,1737138632341,-27565.09,0.00022562,2]
[349367329,1737138632350,-999.99,0.00022562,2]
[349367330,1737138632359,-812.36,0.00022562,2]
[349367331,1737138632369,-264.65,0.00022562,2]
[349367332,1737138632379,-150.99,0.00022562,2]
[349367333,1737138632388,-286.95668153,0.00022659,3]
[349367334,1737138632398,-286.95668153,0.00022762,3]
[349367335,1737138632407,-286.95668153,0.00022866,3]
[349367336,1737138632417,-200.22513176,0.00022915,2]
[349367337,1737138632427,-179.06,0.00022918,2]
[349367338,1737138632436,-286.95668153,0.00022969,3]
[349367339,1737138632446,-1088.907,0.00022999,2]
[349367340,1737138632455,-36130.7807,0.00023,2]
[349367341,1737138632465,-9436.9631358,0.00023,7]
[349367342,1737138632474,-768.54889619,0.00023,2]
[349367343,1737138632484,-5000.0,0.00023,2]
[349367344,1737138632497,-241.0,0.00023014,2]
[349367345,1737138632507,-274.87928836,0.00023055,2]
[349367346,1737138632517,-274.87928836,0.00023062,2]
[349367347,1737138632526,-286.95668153,0.00023072,3]
[349367348,1737138632536,-500.0,0.00023073,2]
[349367349,1737138632545,-500.0,0.00023073,2]
[349367350,1737138632554,-1505.65696894,0.00023077,2]
[349367351,1737138632563,-1531.63,0.00023089,2]
[349367352,1737138632573,-1531.63,0.0002309,2]
[349367353,1737138632584,-1531.63,0.0002309,2]
[349367354,1737138632593,-1531.63,0.0002309,2]
[349367355,1737138632602,-461.2732,0.00023097,2]
[349367356,1737138632611,-274.87928836,0.00023098,2]
[349367357,1737138632621,-500.0,0.00023098,2]
[349367358,1737138632631,-560.60911462,0.00023098,2]
[349367359,1737138632640,-500.0,0.00023098,2]
[349367360,1737138632650,-500.0,0.00023098,2]
[349367361,1737138632659,-500.0,0.00023098,2]
[349367362,1737138632669,-500.0,0.00023098,2]
[349367363,1737138632679,-500.0,0.00023098,2]
[349367364,1737138632689,-500.0,0.00023098,2]
[349367365,1737138632698,-500.0,0.00023098,2]
[349367366,1737138632708,-500.0,0.00023098,2]
[349367367,1737138632717,-500.0,0.00023098,2]
[349367368,1737138632727,-500.0,0.00023098,2]
[349367369,1737138632736,-1357.110318,0.00023098,2]
[349367370,1737138632747,-500.0,0.00023098,2]
[349367371,1737138632757,-500.0,0.00023098,2]
[349367372,1737138632766,-500.0,0.00023098,2]
[349367373,1737138632776,-500.0,0.00023098,2]
[349367374,1737138632785,-161.826172,0.00023098,2]
[349367375,1737138632794,-500.0,0.00023098,2]
[349367376,1737138632803,-500.0,0.00023098,2]
[349367377,1737138632819,-500.0,0.00023098,2]
[349367378,1737138632829,-548.1,0.00023098,2]
[349367379,1737138632842,-476.0197845,0.00023098,2]
[349367380,1737138632852,-160.54791094,0.00023099,2]
[349367381,1737138632862,-500.0,0.00023099,2]
[349367382,1737138632872,-500.0,0.00023099,2]
[349367383,1737138632882,-500.0,0.00023099,2]
[349367384,1737138632891,-500.0,0.00023099,2]
[349367385,1737138632901,-500.0,0.00023099,2]
[349367386,1737138632911,-500.0,0.00023099,2]
[349367387,1737138632920,-500.0,0.00023099,2]
[349367388,1737138632930,-500.0,0.00023099,2]
[349367389,1737138632939,-500.0,0.00023099,2]
[349367390,1737138632948,-500.0,0.00023099,2]
[349367391,1737138632957,-500.0,0.00023099,2]
[349367392,1737138632967,-500.0,0.00023099,2]
[349367393,1737138632978,-500.0,0.00023099,2]
[349367394,1737138632988,-500.0,0.00023099,2]
[349367395,1737138633001,-591.38,0.00023099,2]
[349367396,1737138633011,-500.0,0.00023099,2]
[349367397,1737138633021,-500.0,0.00023099,2]
[349367398,1737138633030,-574.32,0.00023099,2]
[349367399,1737138633039,-500.0,0.00023099,2]
[349367400,1737138633049,-500.0,0.00023099,2]
[349367401,1737138633059,-500.0,0.00023099,2]
[349367402,1737138633068,-500.0,0.00023099,2]
[349367403,1737138633078,-562.5,0.00023099,2]
[349367404,1737138633087,-500.0,0.00023099,2]
[349367405,1737138633097,-500.0,0.00023099,2]
[349367406,1737138633106,-500.0,0.00023099,2]
[349367407,1737138633116,-500.0,0.00023099,2]
[349367408,1737138633125,-500.0,0.00023099,2]
[349367409,1737138633134,-500.48189289,0.00023099,2]
[349367410,1737138633143,-500.0,0.00023099,2]
[349367411,1737138633153,-500.0,0.00023099,2]
[349367412,1737138633162,-509.55,0.00023099,2]
[349367413,1737138633171,-500.0,0.00023099,2]
[349367414,1737138633181,-500.0,0.00023099,2]
[349367415,1737138633190,-500.0,0.00023099,2]
[349367416,1737138633200,-500.0,0.00023099,2]
[349367417,1737138633210,-500.0,0.00023099,2]
[349367418,1737138633219,-500.0,0.00023099,2]
[349367419,1737138633229,-500.0,0.00023099,2]
[349367420,1737138633238,-500.0,0.00023099,2]
[349367421,1737138633250,-500.0,0.00023099,2]
[349367422,1737138633260,-500.0,0.00023099,2]
[349367423,1737138633269,-500.0,0.00023099,2]
[349367424,1737138633279,-500.0,0.00023099,2]
[349367425,1737138633288,-500.0,0.00023099,2]
[349367426,1737138633298,-500.0,0.00023099,2]
[349367427,1737138633308,-501.02885426,0.00023099,2]
[349367428,1737138633318,-500.0,0.00023099,2]
[349367429,1737138633327,-500.0,0.00023099,2]
[349367430,1737138633336,-500.0,0.00023099,2]
[349367431,1737138633346,-552.38,0.00023099,2]
[349367432,1737138633356,-500.0,0.00023099,2]
[349367433,1737138633365,-500.0,0.00023099,2]
[349367434,1737138633375,-500.0,0.00023099,2]
[349367435,1737138633385,-500.0,0.00023099,2]
[349367436,1737138633395,-500.0,0.00023099,2]
[349367437,1737138633404,-567.91,0.00023099,2]
[349367438,1737138633414,-500.0,0.00023099,2]
[349367439,1737138633424,-500.0,0.00023099,2]
[349367440,1737138633433,-500.0,0.00023099,2]
[349367441,1737138633443,-500.0,0.00023099,2]
[349367442,1737138633452,-500.0,0.00023099,2]
[349367443,1737138633462,-500.0,0.00023099,2]
[349367444,1737138633471,-500.0,0.00023099,2]
[349367445,1737138633481,-500.0,0.00023099,2]
[349367446,1737138633490,-500.0,0.00023099,2]
[349367447,1737138633503,-500.0,0.00023099,2]
[349367448,1737138633513,-553.79,0.00023099,2]
[349367449,1737138633522,-500.0,0.00023099,2]
[349367450,1737138633532,-500.0,0.00023099,2]
[349367451,1737138633542,-500.0,0.00023099,2]
[349367452,1737138633552,-500.0,0.00023099,2]
[349367453,1737138633562,-500.0,0.00023099,2]
[349367454,1737138633571,-500.0,0.00023099,2]
[349367455,1737138633581,-500.0,0.00023099,2]
[349367456,1737138633590,-500.0,0.00023099,2]
[349367457,1737138633600,-500.0,0.00023099,2]
[349367458,1737138633610,-274.30831563,0.00023099,2]
[349367459,1737138633619,-201.74,0.00023099,2]
[349367460,1737138633629,-500.0,0.00023099,2]
[349367461,1737138633638,-500.0,0.00023099,2]
[349367462,1737138633648,-155.08,0.00023099,2]
[349367463,1737138633658,-500.0,0.00023099,2]
[349367464,1737138633667,-500.0,0.00023099,2]
[349367465,1737138633676,-500.0,0.00023099,2]
[349367466,1737138633686,-500.0,0.00023099,2]
[349367467,1737138633696,-500.0,0.00023099,2]
[349367468,1737138633705,-500.0,0.00023099,2]
[349367469,1737138633715,-500.0,0.00023099,2]
[349367470,1737138633724,-500.0,0.00023099,2]
[349367471,1737138633734,-500.0,0.00023099,2]
[349367472,1737138633745,-500.0,0.00023099,2]
[349367473,1737138633755,-500.0,0.00023099,2]
[349367474,1737138633765,-500.0,0.00023099,2]
[349367475,1737138633775,-500.0,0.00023099,2]
[349367476,1737138633784,-500.0,0.00023099,2]
[349367477,1737138633794,-500.0,0.00023099,2]
[349367478,1737138633804,-500.0,0.00023099,2]
[349367479,1737138633817,-500.0,0.00023099,2]
[349367480,1737138633827,-500.0,0.00023099,2]
[349367481,1737138633839,-500.0,0.00023099,2]
[349367482,1737138633849,-500.0,0.00023099,2]
[349367483,1737138633858,-500.0,0.00023099,2]
[349367484,1737138633868,-501.82926816,0.00023099,2]
[349367485,1737138633878,-500.0,0.00023099,2]
[349367486,1737138633887,-500.0,0.00023099,2]
[349367487,1737138633897,-400.4,0.00023099,2]
[349367488,1737138633907,-500.0,0.00023099,2]
[349367489,1737138633916,-500.0,0.00023099,2]
[349367490,1737138633926,-500.0,0.00023099,2]
[349367491,1737138633935,-535.9,0.00023099,2]
[349367492,1737138633944,-500.0,0.00023099,2]
[349367493,1737138633954,-547.15,0.00023099,2]
[349367494,1737138633963,-500.0,0.00023099,2]
[349367495,1737138633972,-500.0,0.00023099,2]
[349367496,1737138633982,-500.0,0.00023099,2]
[349367497,1737138633992,-500.0,0.00023099,2]
[349367498,1737138634003,-500.0,0.00023099,2]
[349367499,1737138634012,-500.0,0.00023099,2]
[349367500,1737138634022,-500.0,0.00023099,2]
[349367501,1737138634032,-512.2144283,0.00023099,2]
[349367502,1737138634042,-500.0,0.00023099,2]
[349367503,1737138634051,-500.0,0.00023099,2]
[349367504,1737138634061,-500.0,0.00023099,2]
[349367505,1737138634071,-500.0,0.00023099,2]
[349367506,1737138634080,-500.0,0.00023099,2]
[349367507,1737138634090,-500.0,0.00023099,2]
[349367508,1737138634099,-100477.4727,0.000231,2]
[349367509,1737138634109,-1691.2,0.000231,2]
[349367510,1737138634118,-18227.34431928,0.000231,2]
[349367511,1737138634133,-1625.5984237,0.000231,2]
[349367531,1737138638082,-500.0,0.00023098,2]
[349367532,1737138638091,-500.0,0.00023098,2]
[349367533,1737138638101,-500.0,0.00023098,2]
[349367534,1737138638110,-500.0,0.00023098,2]
[349367535,1737138638119,-500.0,0.00023098,2]
[349367536,1737138638129,-500.0,0.00023098,2]
[349367537,1737138638138,-500.0,0.00023099,2]
[349367538,1737138638148,-87880.67379301,0.000231,2]